[Event "*** Titled Tuesday Blitz"]
[Site "Chess.com"]
[Date "2019.08.06"]
[Round "1"]
[White "ChessicallyInclined"]
[Black "paladin_ll"]
[Result "1-0"]
[WhiteElo "2584"]
[BlackElo "2189"]
[TimeControl "180+2"]
[EndTime "13:07:00 PDT"]
[Termination "ChessicallyInclined won by resignation"]

1. d4 {[%clk 0:03:00.6]} 1... Nf6 {[%clk 0:03:00.1]} 2. c4 {[%clk 0:02:58]} 2...
c5 {[%clk 0:03:01]} 3. d5 {[%clk 0:02:59.1]} 3... b5 {[%clk 0:03:01.6]} 4. cxb5
{[%clk 0:03:00.6]} 4... a6 {[%clk 0:03:02.7]} 5. f3 {[%clk 0:03:02.2]} 5... d6
{[%clk 0:03:03.5]} 6. e4 {[%clk 0:03:02]} 6... g6 {[%clk 0:03:04.4]} 7. Na3
{[%clk 0:03:03]} 7... Bg7 {[%clk 0:03:05.5]} 8. Ne2 {[%clk 0:03:04.4]} 8... O-O
{[%clk 0:03:06.3]} 9. Nc3 {[%clk 0:03:06]} 9... axb5 {[%clk 0:03:07]} 10. Bxb5
{[%clk 0:03:06.8]} 10... Ba6 {[%clk 0:03:07]} 11. Qe2 {[%clk 0:03:05.7]} 11...
Bxb5 {[%clk 0:03:07.7]} 12. Naxb5 {[%clk 0:03:07.6]} 12... Na6 {[%clk 0:03:07]}
13. O-O {[%clk 0:03:07.1]} 13... Nc7 {[%clk 0:03:07.9]} 14. Bd2 {[%clk
0:03:04.8]} 14... Nxb5 {[%clk 0:03:08.7]} 15. Nxb5 {[%clk 0:03:06.7]} 15... Ne8
{[%clk 0:03:09.5]} 16. Bc3 {[%clk 0:03:07.1]} 16... Nc7 {[%clk 0:03:10.1]} 17.
Bxg7 {[%clk 0:02:59.7]} 17... Kxg7 {[%clk 0:03:10.2]} 18. Na3 {[%clk 0:03:01]}
18... Qb8 {[%clk 0:03:05.6]} 19. Nc4 {[%clk 0:03:00.2]} 19... Nb5 {[%clk
0:03:00.8]} 20. b3 {[%clk 0:02:53.3]} 20... Nd4 {[%clk 0:02:59]} 21. Qb2 {[%clk
0:02:54.4]} 21... Kg8 {[%clk 0:02:57.8]} 22. Kh1 {[%clk 0:02:51.9]} 22... Qb4
{[%clk 0:02:57.3]} 23. Rad1 {[%clk 0:02:39.6]} 23... Rfb8 {[%clk 0:02:55.2]} 24.
Rf2 {[%clk 0:02:37.8]} 24... Ra6 {[%clk 0:02:48.3]} 25. h3 {[%clk 0:02:28]}
25... Rba8 {[%clk 0:02:46.3]} 26. Qb1 {[%clk 0:02:19.3]} 26... Rb8 {[%clk
0:02:44.2]} 27. Qd3 {[%clk 0:02:11.4]} 27... Rba8 {[%clk 0:02:36]} 28. Rdd2
{[%clk 0:02:08.5]} 28... Nb5 {[%clk 0:02:29.1]} 29. f4 {[%clk 0:02:02.4]} 29...
Qc3 {[%clk 0:02:22.2]} 30. a4 {[%clk 0:01:52.7]} 30... Qxd3 {[%clk 0:02:19.7]}
31. Rxd3 {[%clk 0:01:54.6]} 31... Nd4 {[%clk 0:02:18.2]} 32. e5 {[%clk
0:01:33.4]} 32... Rb8 {[%clk 0:02:14.9]} 33. Rb2 {[%clk 0:01:32]} 33... Kg7
{[%clk 0:02:01.3]} 34. Kg1 {[%clk 0:01:31.9]} 34... h5 {[%clk 0:02:01.2]} 35. g3
{[%clk 0:01:27.9]} 35... Kf8 {[%clk 0:01:30.7]} 36. Kf2 {[%clk 0:01:24.4]} 36...
Rxa4 {[%clk 0:01:12.9]} 37. bxa4 {[%clk 0:01:21.1]} 37... Ra8 {[%clk 0:01:07]}
38. Ra3 {[%clk 0:01:19.1]} 38... Nf5 {[%clk 0:01:02.3]} 39. a5 {[%clk 0:01:19]}
1-0

[Event "*** Titled Tuesday Blitz"]
[Site "Chess.com"]
[Date "2019.08.06"]
[Round "1"]
[White "RegZryt"]
[Black "LuisFSiles"]
[Result "1-0"]
[WhiteElo "2589"]
[BlackElo "2195"]
[TimeControl "180+2"]
[EndTime "13:07:02 PDT"]
[Termination "RegZryt won by resignation"]

1. d4 {[%clk 0:02:59.7]} 1... Nf6 {[%clk 0:02:59.6]} 2. c4 {[%clk 0:03:00.7]}
2... g6 {[%clk 0:02:59.9]} 3. Nc3 {[%clk 0:03:01.2]} 3... Bg7 {[%clk 0:03:00.9]}
4. e4 {[%clk 0:03:02.8]} 4... d6 {[%clk 0:03:01.3]} 5. Be2 {[%clk 0:03:04.7]}
5... O-O {[%clk 0:03:02.1]} 6. Be3 {[%clk 0:03:06.3]} 6... c5 {[%clk 0:02:36.9]}
7. d5 {[%clk 0:03:06.3]} 7... e6 {[%clk 0:02:32.4]} 8. Nf3 {[%clk 0:03:07.1]}
8... exd5 {[%clk 0:02:32.3]} 9. cxd5 {[%clk 0:03:09]} 9... Bg4 {[%clk
0:02:31.7]} 10. Nd2 {[%clk 0:03:09.6]} 10... Bxe2 {[%clk 0:02:32.2]} 11. Qxe2
{[%clk 0:03:11.5]} 11... Re8 {[%clk 0:02:30.3]} 12. O-O {[%clk 0:03:12]} 12...
Nbd7 {[%clk 0:02:28.4]} 13. h3 {[%clk 0:03:12.1]} 13... a6 {[%clk 0:02:29.1]}
14. a4 {[%clk 0:03:13.5]} 14... Rb8 {[%clk 0:02:28.8]} 15. a5 {[%clk 0:03:14.1]}
15... Qe7 {[%clk 0:02:16.9]} 16. Ra4 {[%clk 0:02:33.4]} 16... b5 {[%clk
0:01:58.2]} 17. axb6 {[%clk 0:02:33.8]} 17... Rxb6 {[%clk 0:01:58.5]} 18. Nc4
{[%clk 0:02:34.1]} 18... Rb4 {[%clk 0:01:58.3]} 19. Rxa6 {[%clk 0:02:34.5]}
19... Nb8 {[%clk 0:01:23.3]} 20. Ra2 {[%clk 0:02:22.6]} 20... Nfd7 {[%clk
0:01:12.4]} 21. Ra7 {[%clk 0:02:16.7]} 21... Qf8 {[%clk 0:00:59.3]} 22. Bf4
{[%clk 0:02:11]} 22... Ne5 {[%clk 0:00:57.5]} 23. Bxe5 {[%clk 0:02:09.2]} 23...
Bxe5 {[%clk 0:00:59.4]} 24. Nxe5 {[%clk 0:02:05]} 24... Rxe5 {[%clk 0:01:01.3]}
25. f4 {[%clk 0:02:05.5]} 25... Re7 {[%clk 0:01:02.1]} 26. Rxe7 {[%clk
0:02:05.5]} 26... Qxe7 {[%clk 0:01:02.7]} 27. e5 {[%clk 0:02:07.4]} 27... Nd7
{[%clk 0:01:02.2]} 28. e6 {[%clk 0:02:07]} 28... Nf8 {[%clk 0:00:59.3]} 29. f5
{[%clk 0:01:58.7]} 29... gxf5 {[%clk 0:00:54.6]} 30. Rxf5 {[%clk 0:02:00.6]}
30... fxe6 {[%clk 0:00:52.3]} 31. dxe6 {[%clk 0:02:01.9]} 31... Rd4 {[%clk
0:00:32.5]} 32. Nd5 {[%clk 0:01:55.3]} 32... Rxd5 {[%clk 0:00:33.7]} 33. Rxd5
{[%clk 0:01:57.2]} 33... Qxe6 {[%clk 0:00:33.6]} 34. Qxe6+ {[%clk 0:01:57.4]}
34... Nxe6 {[%clk 0:00:35.5]} 35. Rxd6 {[%clk 0:01:59.3]} 35... Kf7 {[%clk
0:00:36.3]} 36. Kf2 {[%clk 0:01:54.2]} 36... Ke7 {[%clk 0:00:34.7]} 37. Ra6
{[%clk 0:01:54.7]} 37... c4 {[%clk 0:00:31.7]} 38. Ke3 {[%clk 0:01:54.5]} 38...
h5 {[%clk 0:00:30.2]} 39. Ra5 {[%clk 0:01:52.6]} 39... h4 {[%clk 0:00:28.4]} 40.
Rh5 {[%clk 0:01:53.5]} 40... Ng7 {[%clk 0:00:29.4]} 41. Rc5 {[%clk 0:01:49.3]}
1-0

[Event "*** Titled Tuesday Blitz"]
[Site "Chess.com"]
[Date "2019.08.06"]
[Round "1"]
[White "pheonixking2000"]
[Black "djano"]
[Result "1-0"]
[WhiteElo "2693"]
[BlackElo "2349"]
[TimeControl "180+2"]
[EndTime "13:07:04 PDT"]
[Termination "pheonixking2000 won by resignation"]

1. e4 {[%clk 0:02:59.8]} 1... c5 {[%clk 0:01:32.7]} 2. Nf3 {[%clk 0:02:55.5]}
2... Nc6 {[%clk 0:01:33.7]} 3. c3 {[%clk 0:02:53.7]} 3... Nf6 {[%clk 0:01:30.6]}
4. e5 {[%clk 0:02:54.6]} 4... Nd5 {[%clk 0:01:31.7]} 5. g3 {[%clk 0:02:55.9]}
5... d6 {[%clk 0:01:32.4]} 6. exd6 {[%clk 0:02:56.3]} 6... e6 {[%clk 0:01:33.5]}
7. Bg2 {[%clk 0:02:58.2]} 7... Bxd6 {[%clk 0:01:34.7]} 8. O-O {[%clk 0:02:59.5]}
8... O-O {[%clk 0:01:35.7]} 9. d4 {[%clk 0:03:01.4]} 9... cxd4 {[%clk
0:01:36.9]} 10. Nxd4 {[%clk 0:03:03.3]} 10... Bd7 {[%clk 0:01:36.5]} 11. Nb3
{[%clk 0:02:52]} 11... Qc7 {[%clk 0:01:24.2]} 12. c4 {[%clk 0:02:44.6]} 12...
Nf6 {[%clk 0:01:25.2]} 13. c5 {[%clk 0:02:45.5]} 13... Be7 {[%clk 0:01:25]} 14.
Nc3 {[%clk 0:02:47.4]} 14... Rad8 {[%clk 0:01:25.5]} 15. Qe2 {[%clk 0:02:47.4]}
15... a5 {[%clk 0:01:25.8]} 16. Bf4 {[%clk 0:02:46.7]} 16... e5 {[%clk
0:01:26.3]} 17. Bg5 {[%clk 0:02:47.6]} 17... Be6 {[%clk 0:01:18.5]} 18. Rfe1
{[%clk 0:02:32]} 18... a4 {[%clk 0:01:18.3]} 19. Nxa4 {[%clk 0:02:31.3]} 19...
Bxb3 {[%clk 0:01:17.7]} 20. axb3 {[%clk 0:02:31.7]} 20... h6 {[%clk 0:01:15.9]}
21. Bxf6 {[%clk 0:02:32.5]} 21... Bxf6 {[%clk 0:01:16.8]} 22. Bxc6 {[%clk
0:02:28.4]} 22... Qxc6 {[%clk 0:01:16]} 23. Qe4 {[%clk 0:02:29.6]} 23... Qe6
{[%clk 0:01:13.1]} 24. Qc4 {[%clk 0:02:29.8]} 24... Qh3 {[%clk 0:01:10.1]} 25.
Nc3 {[%clk 0:02:25.2]} 25... Rd4 {[%clk 0:01:08.1]} 26. Qb5 {[%clk 0:02:22.9]}
26... Rfd8 {[%clk 0:01:01.1]} 27. Qxb7 {[%clk 0:02:20]} 27... Rd2 {[%clk
0:00:58.9]} 28. Ra8 {[%clk 0:02:06.9]} 28... g6 {[%clk 0:00:51.1]} 29. Rxd8+
{[%clk 0:02:06.9]} 29... Bxd8 {[%clk 0:00:52.2]} 30. c6 {[%clk 0:02:02]} 30...
Rxf2 {[%clk 0:00:50.5]} 31. Kxf2 {[%clk 0:02:02.2]} 31... Qxh2+ {[%clk
0:00:51.5]} 32. Kf1 {[%clk 0:02:02.1]} 32... Qh1+ {[%clk 0:00:49.6]} 33. Ke2
{[%clk 0:02:02.6]} 33... Qg2+ {[%clk 0:00:50.1]} 34. Kd1 {[%clk 0:02:01.6]}
34... Bg5 {[%clk 0:00:51.1]} 35. Ne4 {[%clk 0:01:52.8]} 35... Qf3+ {[%clk
0:00:37.7]} 36. Kc2 {[%clk 0:01:51.9]} 36... Be3 {[%clk 0:00:35.6]} 37. c7
{[%clk 0:01:52.6]} 37... Qg2+ {[%clk 0:00:35.4]} 38. Kb1 {[%clk 0:01:53.1]} 1-0

[Event "*** Titled Tuesday Blitz"]
[Site "Chess.com"]
[Date "2019.08.06"]
[Round "1"]
[White "Ba_clbaf_osed_ingo_3v21"]
[Black "brother-bear"]
[Result "1-0"]
[WhiteElo "2520"]
[BlackElo "1824"]
[TimeControl "180+2"]
[EndTime "13:07:16 PDT"]
[Termination "Ba_clbaf_osed_ingo_3v21 won by resignation"]

1. d4 {[%clk 0:03:00.7]} 1... g6 {[%clk 0:03:00.5]} 2. c4 {[%clk 0:03:00.3]}
2... Bg7 {[%clk 0:03:01.5]} 3. e4 {[%clk 0:03:01.7]} 3... d6 {[%clk 0:03:02]} 4.
Nc3 {[%clk 0:03:01.8]} 4... e5 {[%clk 0:03:02.1]} 5. Nf3 {[%clk 0:02:58.3]} 5...
Nc6 {[%clk 0:03:01.3]} 6. Bg5 {[%clk 0:02:58.2]} 6... f6 {[%clk 0:02:53.8]} 7.
Be3 {[%clk 0:02:56.4]} 7... Nh6 {[%clk 0:02:52.6]} 8. dxe5 {[%clk 0:02:56.9]}
8... dxe5 {[%clk 0:02:51.3]} 9. Qxd8+ {[%clk 0:02:57.7]} 9... Nxd8 {[%clk
0:02:51.6]} 10. Nd5 {[%clk 0:02:57.8]} 10... Ne6 {[%clk 0:02:49.4]} 11. Nxf6+
{[%clk 0:02:33.5]} 11... Kf7 {[%clk 0:02:26.6]} 12. Bxh6 {[%clk 0:02:23.4]}
12... Bxf6 {[%clk 0:02:11.1]} 13. Be3 {[%clk 0:02:19.6]} 13... Bd7 {[%clk
0:02:03.5]} 14. O-O-O {[%clk 0:02:17.1]} 14... Bc6 {[%clk 0:02:04.6]} 15. Bd3
{[%clk 0:02:18.2]} 15... Rhe8 {[%clk 0:01:59.4]} 16. Bc2 {[%clk 0:02:14.9]}
16... a6 {[%clk 0:01:39.1]} 17. h4 {[%clk 0:02:06.6]} 17... Nf4 {[%clk
0:01:33.9]} 18. g3 {[%clk 0:01:52.5]} 18... Ne6 {[%clk 0:01:30]} 19. Ng5+ {[%clk
0:01:49.4]} 19... Bxg5 {[%clk 0:01:21.9]} 20. hxg5 {[%clk 0:01:50.7]} 20... Kg7
{[%clk 0:01:23.6]} 21. Rhe1 {[%clk 0:01:38.9]} 21... Rf8 {[%clk 0:01:19.6]} 22.
Rf1 {[%clk 0:01:22.6]} 22... Rf7 {[%clk 0:01:16.6]} 23. f4 {[%clk 0:01:19.8]}
23... Raf8 {[%clk 0:01:07.4]} 24. f5 {[%clk 0:01:19.6]} 24... gxf5 {[%clk
0:01:03.5]} 25. exf5 {[%clk 0:01:20.5]} 25... Nd4 {[%clk 0:00:32.7]} 26. Bxd4
{[%clk 0:01:04.5]} 26... exd4 {[%clk 0:00:31.3]} 27. Rxd4 {[%clk 0:01:04.1]}
27... Bd7 {[%clk 0:00:21.3]} 28. f6+ {[%clk 0:01:03.2]} 28... Kg8 {[%clk
0:00:21.9]} 29. Rh4 {[%clk 0:01:04.3]} 29... Be6 {[%clk 0:00:17.8]} 30. Rfh1
{[%clk 0:01:00.7]} 1-0

[Event "*** Titled Tuesday Blitz"]
[Site "Chess.com"]
[Date "2019.08.06"]
[Round "1"]
[White "dcremisi"]
[Black "vanea_03"]
[Result "1-0"]
[WhiteElo "2369"]
[BlackElo "2673"]
[TimeControl "180+2"]
[EndTime "13:07:17 PDT"]
[Termination "dcremisi won by resignation"]

1. Nf3 {[%clk 0:02:57.9]} 1... d5 {[%clk 0:03:00.2]} 2. d4 {[%clk 0:02:58.3]}
2... Nf6 {[%clk 0:03:00.7]} 3. c4 {[%clk 0:02:59]} 3... e6 {[%clk 0:03:01.3]} 4.
Nc3 {[%clk 0:02:57.7]} 4... dxc4 {[%clk 0:03:02.4]} 5. e3 {[%clk 0:02:56.7]}
5... a6 {[%clk 0:03:03.4]} 6. Bxc4 {[%clk 0:02:57.5]} 6... b5 {[%clk 0:03:04.4]}
7. Bd3 {[%clk 0:02:58.8]} 7... Bb7 {[%clk 0:03:05.9]} 8. O-O {[%clk 0:02:59.7]}
8... c5 {[%clk 0:03:05.9]} 9. dxc5 {[%clk 0:03:00.1]} 9... Bxc5 {[%clk
0:03:06.1]} 10. Qe2 {[%clk 0:02:58.6]} 10... Nbd7 {[%clk 0:03:05.5]} 11. Rd1
{[%clk 0:02:59]} 11... O-O {[%clk 0:03:01.7]} 12. a3 {[%clk 0:02:58.9]} 12...
Qb8 {[%clk 0:02:48.6]} 13. b4 {[%clk 0:02:56.1]} 13... Bd6 {[%clk 0:02:48.5]}
14. Bb2 {[%clk 0:02:47.1]} 14... Bxf3 {[%clk 0:02:44.7]} 15. Qxf3 {[%clk
0:02:47.9]} 15... Bxh2+ {[%clk 0:02:45.8]} 16. Kf1 {[%clk 0:02:47.8]} 16... Ne5
{[%clk 0:02:44.5]} 17. Qh3 {[%clk 0:02:32.2]} 17... Nxd3 {[%clk 0:02:40.8]} 18.
Rxd3 {[%clk 0:02:32.6]} 18... Be5 {[%clk 0:02:40.6]} 19. Ke2 {[%clk 0:02:30.9]}
19... Rd8 {[%clk 0:02:35.8]} 20. Rad1 {[%clk 0:02:30.3]} 20... Rxd3 {[%clk
0:02:20.8]} 21. Rxd3 {[%clk 0:02:32.1]} 21... Qc7 {[%clk 0:02:22.3]} 22. f4
{[%clk 0:02:10.6]} 22... Bxc3 {[%clk 0:02:13.9]} 23. Rxc3 {[%clk 0:02:11.7]}
23... Qb7 {[%clk 0:02:08.7]} 24. Rc5 {[%clk 0:02:07]} 24... Rd8 {[%clk
0:01:40.1]} 25. Bxf6 {[%clk 0:01:53.7]} 25... gxf6 {[%clk 0:01:42]} 26. Qf3
{[%clk 0:01:51.5]} 26... Qd7 {[%clk 0:01:38.2]} 27. Kf2 {[%clk 0:01:50.4]} 27...
Qd2+ {[%clk 0:01:34.6]} 28. Kg3 {[%clk 0:01:51.3]} 28... Qe1+ {[%clk 0:01:28.5]}
29. Kh2 {[%clk 0:01:52.3]} 29... f5 {[%clk 0:01:24.1]} 30. Rc6 {[%clk
0:01:42.7]} 30... Rd3 {[%clk 0:00:39.8]} 31. Qh5 {[%clk 0:01:29.1]} 31... Kf8
{[%clk 0:00:13.9]} 32. Rc8+ {[%clk 0:01:21.5]} 32... Ke7 {[%clk 0:00:15.2]} 33.
Qg5+ {[%clk 0:01:22.2]} 1-0

[Event "*** Titled Tuesday Blitz"]
[Site "Chess.com"]
[Date "2019.08.06"]
[Round "1"]
[White "Adham_Fawzy"]
[Black "ruvat"]
[Result "1-0"]
[WhiteElo "2715"]
[BlackElo "2368"]
[TimeControl "180+2"]
[EndTime "13:07:22 PDT"]
[Termination "Adham_Fawzy won by resignation"]

1. e4 {[%clk 0:03:01.9]} 1... d6 {[%clk 0:02:59.8]} 2. d4 {[%clk 0:03:02.7]}
2... Nf6 {[%clk 0:03:00.5]} 3. Nc3 {[%clk 0:03:04.2]} 3... g6 {[%clk 0:03:01.4]}
4. Be3 {[%clk 0:03:03]} 4... c6 {[%clk 0:03:01]} 5. h3 {[%clk 0:03:02.7]} 5...
Nbd7 {[%clk 0:03:00.2]} 6. Nf3 {[%clk 0:03:01.1]} 6... Bg7 {[%clk 0:03:00.3]} 7.
Qd2 {[%clk 0:02:59.2]} 7... O-O {[%clk 0:03:00.3]} 8. Bh6 {[%clk 0:03:00.1]}
8... e5 {[%clk 0:02:59.8]} 9. O-O-O {[%clk 0:02:59.2]} 9... Qe7 {[%clk 0:02:59]}
10. Bxg7 {[%clk 0:02:52.1]} 10... Kxg7 {[%clk 0:02:59.7]} 11. d5 {[%clk
0:02:45.4]} 11... c5 {[%clk 0:02:54.3]} 12. h4 {[%clk 0:02:43.2]} 12... h5
{[%clk 0:02:47.7]} 13. Ng5 {[%clk 0:02:42.6]} 13... a6 {[%clk 0:02:44.5]} 14. f3
{[%clk 0:02:43]} 14... b5 {[%clk 0:02:43.6]} 15. Kb1 {[%clk 0:02:43.8]} 15...
Nb6 {[%clk 0:02:38]} 16. Ne2 {[%clk 0:02:17.5]} 16... a5 {[%clk 0:02:18]} 17. g4
{[%clk 0:02:07.3]} 17... Rh8 {[%clk 0:01:51]} 18. Ng3 {[%clk 0:01:59.4]} 18...
Bd7 {[%clk 0:01:35.4]} 19. Be2 {[%clk 0:01:53.5]} 19... Nc4 {[%clk 0:01:24.4]}
20. Qc1 {[%clk 0:01:50.7]} 20... a4 {[%clk 0:01:23.2]} 21. a3 {[%clk 0:01:49.2]}
21... hxg4 {[%clk 0:01:17.2]} 22. fxg4 {[%clk 0:01:49.1]} 22... Bxg4 {[%clk
0:01:13]} 23. h5 {[%clk 0:01:29.5]} 23... Bxe2 {[%clk 0:01:09.3]} 24. h6+ {[%clk
0:01:28.8]} 24... Kf8 {[%clk 0:01:09.6]} 25. Nxe2 {[%clk 0:01:28]} 25... Ng4
{[%clk 0:01:03.9]} 26. Rdf1 {[%clk 0:01:27.9]} 26... f6 {[%clk 0:00:41.6]} 27.
Rhg1 {[%clk 0:01:01]} 27... Nce3 {[%clk 0:00:33.8]} 28. Rf3 {[%clk 0:00:58.2]}
28... Rxh6 {[%clk 0:00:35.7]} 29. Ne6+ {[%clk 0:00:57.5]} 29... Ke8 {[%clk
0:00:35.6]} 30. Rxe3 {[%clk 0:00:57.9]} 30... Nxe3 {[%clk 0:00:35.3]} 31. Qxe3
{[%clk 0:00:59.8]} 31... g5 {[%clk 0:00:21.3]} 32. Ng3 {[%clk 0:00:59.2]} 32...
Rh3 {[%clk 0:00:20.2]} 33. Qe2 {[%clk 0:01:00.1]} 33... Kd7 {[%clk 0:00:17.7]}
34. Qxb5+ {[%clk 0:01:00]} 1-0

[Event "*** Titled Tuesday Blitz"]
[Site "Chess.com"]
[Date "2019.08.06"]
[Round "1"]
[White "filali-marouan"]
[Black "NTBT_DHS"]
[Result "0-1"]
[WhiteElo "2323"]
[BlackElo "2665"]
[TimeControl "180+2"]
[EndTime "13:07:22 PDT"]
[Termination "NTBT_DHS won on time"]

1. e4 {[%clk 0:03:01.4]} 1... c5 {[%clk 0:03:00.5]} 2. Nf3 {[%clk 0:02:59.7]}
2... Nc6 {[%clk 0:03:01.5]} 3. d4 {[%clk 0:03:01.3]} 3... cxd4 {[%clk
0:03:02.6]} 4. Nxd4 {[%clk 0:03:03.2]} 4... Nf6 {[%clk 0:03:03.6]} 5. Nxc6
{[%clk 0:03:02.4]} 5... bxc6 {[%clk 0:02:59.5]} 6. Nc3 {[%clk 0:03:02.6]} 6...
e5 {[%clk 0:02:56]} 7. Bc4 {[%clk 0:02:58.6]} 7... Bb4 {[%clk 0:02:53.2]} 8. Qd3
{[%clk 0:02:45.8]} 8... O-O {[%clk 0:02:45]} 9. O-O {[%clk 0:02:45.5]} 9... Bxc3
{[%clk 0:02:41.4]} 10. bxc3 {[%clk 0:02:40.1]} 10... d5 {[%clk 0:02:40.5]} 11.
exd5 {[%clk 0:02:36]} 11... cxd5 {[%clk 0:02:42.4]} 12. Bb3 {[%clk 0:02:35.7]}
12... Be6 {[%clk 0:02:18.1]} 13. Qg3 {[%clk 0:02:29.5]} 13... Qc7 {[%clk
0:02:07.3]} 14. Bh6 {[%clk 0:02:20.3]} 14... Ne8 {[%clk 0:02:03]} 15. Rad1
{[%clk 0:02:14]} 15... Kh8 {[%clk 0:01:50.4]} 16. Be3 {[%clk 0:01:45.7]} 16...
Rd8 {[%clk 0:01:43]} 17. f4 {[%clk 0:01:44]} 17... Nd6 {[%clk 0:01:14.4]} 18.
fxe5 {[%clk 0:01:37]} 18... Ne4 {[%clk 0:01:13.5]} 19. Qf4 {[%clk 0:01:31.4]}
19... Nxc3 {[%clk 0:01:13.2]} 20. Rde1 {[%clk 0:01:09.7]} 20... a5 {[%clk
0:01:11]} 21. a4 {[%clk 0:00:57.3]} 21... Rb8 {[%clk 0:00:52.3]} 22. Rf3 {[%clk
0:00:17.8]} 22... Rb4 {[%clk 0:00:49.5]} 23. Qg5 {[%clk 0:00:15.9]} 23... h6
{[%clk 0:00:47.2]} 24. Qh5 {[%clk 0:00:14.2]} 24... Bg4 {[%clk 0:00:45.9]} 0-1

[Event "*** Titled Tuesday Blitz"]
[Site "Chess.com"]
[Date "2019.08.06"]
[Round "1"]
[White "sergoy"]
[Black "Aknok"]
[Result "1-0"]
[WhiteElo "2845"]
[BlackElo "2431"]
[TimeControl "180+2"]
[EndTime "13:07:23 PDT"]
[Termination "sergoy won by resignation"]

1. d4 {[%clk 0:02:59.9]} 1... f5 {[%clk 0:03:00.5]} 2. c4 {[%clk 0:02:59.6]}
2... Nf6 {[%clk 0:02:58.6]} 3. Nf3 {[%clk 0:03:00.5]} 3... g6 {[%clk 0:02:59.4]}
4. e3 {[%clk 0:02:58.4]} 4... Bg7 {[%clk 0:03:00.2]} 5. b4 {[%clk 0:02:59.5]}
5... d5 {[%clk 0:02:52.2]} 6. Bb2 {[%clk 0:02:59.2]} 6... O-O {[%clk 0:02:51.6]}
7. Nbd2 {[%clk 0:02:58.3]} 7... e6 {[%clk 0:02:44.3]} 8. Be2 {[%clk 0:02:56]}
8... Ne4 {[%clk 0:02:35.6]} 9. O-O {[%clk 0:02:50.3]} 9... Nd7 {[%clk
0:02:28.4]} 10. Qb3 {[%clk 0:02:48.5]} 10... c6 {[%clk 0:02:23]} 11. b5 {[%clk
0:02:47]} 11... g5 {[%clk 0:01:59.9]} 12. Nxe4 {[%clk 0:02:24.7]} 12... fxe4
{[%clk 0:02:01.8]} 13. Ne5 {[%clk 0:02:25.8]} 13... Nxe5 {[%clk 0:01:56.3]} 14.
dxe5 {[%clk 0:02:27.7]} 14... Bd7 {[%clk 0:01:43.1]} 15. bxc6 {[%clk 0:02:22.6]}
15... bxc6 {[%clk 0:01:43.8]} 16. Bd4 {[%clk 0:02:13.1]} 16... Qc7 {[%clk
0:01:29.4]} 17. Qc3 {[%clk 0:02:09.3]} 17... Rac8 {[%clk 0:01:17.3]} 18. Rac1
{[%clk 0:02:08.1]} 18... Qb8 {[%clk 0:01:04.2]} 19. c5 {[%clk 0:01:58]} 19...
Qc7 {[%clk 0:01:02.2]} 20. h3 {[%clk 0:01:47.3]} 20... Be8 {[%clk 0:01:00.6]}
21. Rb1 {[%clk 0:01:37.3]} 21... h5 {[%clk 0:00:55.5]} 22. Rb2 {[%clk
0:01:27.7]} 22... Rb8 {[%clk 0:00:55]} 23. Rfb1 {[%clk 0:01:28.2]} 23... Rxb2
{[%clk 0:00:55.2]} 24. Qxb2 {[%clk 0:01:30.1]} 24... Qf7 {[%clk 0:00:40.2]} 25.
Ba6 {[%clk 0:01:25.7]} 25... g4 {[%clk 0:00:35.3]} 26. h4 {[%clk 0:01:25.2]}
26... g3 {[%clk 0:00:29.9]} 27. fxg3 {[%clk 0:01:25.9]} 27... Qg6 {[%clk
0:00:29.7]} 28. Kh2 {[%clk 0:01:26.7]} 28... Qf5 {[%clk 0:00:14.6]} 29. Rf1
{[%clk 0:01:23.8]} 29... Qg4 {[%clk 0:00:15]} 30. Rxf8+ {[%clk 0:01:22.7]} 30...
Kxf8 {[%clk 0:00:15.2]} 31. Qb8 {[%clk 0:01:24.3]} 31... Qd1 {[%clk 0:00:09.9]}
32. Bc8 {[%clk 0:01:22.3]} 32... Kf7 {[%clk 0:00:09.1]} 33. Qc7+ {[%clk
0:01:21.4]} 33... Kg6 {[%clk 0:00:08.4]} 34. Bxe6 {[%clk 0:01:21.7]} 34... Qf1
{[%clk 0:00:08.8]} 35. Qe7 {[%clk 0:01:19.9]} 35... Bf7 {[%clk 0:00:09.1]} 36.
Qg5+ {[%clk 0:01:20.8]} 36... Kh7 {[%clk 0:00:10]} 37. Bf5+ {[%clk 0:01:22.7]}
37... Kg8 {[%clk 0:00:10.4]} 38. e6 {[%clk 0:01:24.3]} 1-0